bitfinex/quotes_ETHUSD_20240810
["timestamp","ask_amount","ask_price","bid_price","bid_amount"]
[1723264337487,2.4239,2603.2,2602.6,3.84223]
[1723264337689,2.4239,2603.2,2602.4,3.0]
[1723264338019,2.4239,2603.2,2602.4,3.84248]
[1723264338183,3.84172,2603.0,2602.5,3.384248]
[1723264338514,11.66655,2603.0,2602.5,3.384248]
[1723264338716,3.84194,2602.9,2602.5,3.0]
[1723264338918,7.82472,2603.0,2602.2,3.84281]
[1723264338919,6.266,2602.8,2602.2,3.84281]
[1723264339206,6.266,2602.8,2602.2,4.842531]
[1723264339411,6.266,2602.8,2602.2,8.685341]
[1723264339573,10.10811,2602.8,2602.2,4.842531]
[1723264340212,6.266,2602.8,2602.2,4.842531]
[1723264340508,3.983,2602.7,2602.2,4.842531]
[1723264340710,7.82521,2602.7,2602.2,4.842531]
[1723264341592,3.983,2602.7,2602.2,4.842531]
[1723264341995,3.84231,2602.6,2602.0,3.0]
[1723264342322,3.84161,2603.1,2601.9,3.0]
[1723264342323,3.84279,2602.3,2601.9,3.0]
[1723264342542,3.84292,2602.2,2601.7,0.23113]
[1723264342826,3.983,2602.1,2601.7,3.23113]
[1723264343832,3.84372,2601.7,2600.8,2.4763]
[1723264344048,3.983,2601.4,2601.0,3.84458]
[1723264344830,3.983,2601.4,2600.8,6.32115]
[1723264345039,3.983,2601.4,2600.9,4.476915]
[1723264345389,3.983,2601.4,2600.9,0.632115]
[1723264345738,3.983,2601.1,2600.6,3.84519]
[1723264346026,3.84469,2601.0,2600.4,3.84546]
[1723264347029,3.84484,2600.9,2600.4,3.84546]
[1723264347327,3.84484,2600.9,2600.4,4.614583]
[1723264347552,3.84484,2600.9,2600.5,3.0]
[1723264349745,3.84484,2600.9,2600.2,3.84577]
[1723264349746,3.983,2600.8,2600.2,3.84577]
[1723264350202,7.82806,2600.8,2600.2,4.862584]
[1723264351891,6.4068,2601.1,2600.6,3.84526]
[1723264352057,6.4068,2601.1,2600.8,3.84493]
[1723264352058,3.983,2601.1,2600.8,3.84493]
[1723264354203,3.983,2601.1,2600.6,4.229736]
[1723264354204,2.4238,2601.0,2600.6,3.84521]
[1723264357198,3.983,2601.1,2600.7,3.84507]
[1723264357376,3.983,2601.1,2600.8,3.84495]
[1723264359166,3.983,2601.1,2600.8,7.68983]
[1723264359366,3.983,2601.1,2601.0,3.84467]
[1723264359565,3.983,2601.1,2600.8,3.84486]
[1723264360181,3.983,2601.1,2600.7,0.44487261]
[1723264360399,3.983,2601.1,2600.7,3.8451]
[1723264360602,3.983,2601.1,2600.6,3.84517]
[1723264360911,3.983,2601.1,2600.6,7.69031]
[1723264361885,3.8447,2601.0,2600.5,3.84532]
[1723264362800,3.84484,2600.9,2600.3,3.84562]
[1723264362997,6.27154,2600.9,2600.3,3.84562]
[1723264363201,2.4267,2600.9,2600.4,3.84554]
[1723264363771,7.828,2600.8,2600.2,9.32208]
[1723264363998,7.828,2600.8,2600.2,9.32207]
[1723264364169,7.828,2600.8,2600.2,10.254277]
[1723264364369,7.828,2600.8,2600.2,14.100047]
[1723264364601,7.828,2600.8,2600.2,10.254267]
[1723264364778,7.828,2600.8,2600.2,14.100037]
[1723264364980,7.828,2600.8,2600.2,11.623737]
[1723264365178,7.828,2600.8,2600.2,11.623727]
[1723264366081,7.828,2600.8,2600.3,3.84569]
[1723264366484,9.3546609,2600.8,2600.3,3.84569]
[1723264366717,9.3546609,2600.8,2600.2,6.84576]
[1723264366718,7.828,2600.8,2600.2,6.84576]
[1723264367015,7.828,2600.8,2600.0,6.16337]
[1723264367016,6.27193,2600.7,2600.1,3.84592]
[1723264367619,7.681923,2600.7,2600.1,3.84592]
[1723264368616,3.983,2600.5,2600.0,3.84605]
[1723264368913,3.983,2600.5,2600.1,3.0]
[1723264371829,3.983,2600.5,2600.2,3.84581]
[1723264372124,3.983,2600.5,2600.2,3.84577]
[1723264372320,3.983,2600.5,2600.2,7.69154]
[1723264372520,3.983,2600.5,2600.2,3.84577]
[1723264372817,3.983,2600.5,2600.3,3.84558]
[1723264373022,2.4267,2600.7,2600.3,3.84558]
[1723264373695,2.4267,2600.7,2600.2,4.914932]
[1723264373895,6.27182,2600.7,2600.2,4.914932]
[1723264374125,6.27182,2600.7,2600.2,3.84575]
[1723264375929,2.4267,2600.7,2600.2,7.69153]
[1723264376233,2.4267,2600.7,2600.2,3.84575]
[1723264376434,6.27185,2600.7,2600.2,3.84575]
[1723264377230,2.4267,2600.7,2600.3,3.8457]
[1723264377393,2.4267,2600.7,2600.2,8.376095]
[1723264377589,2.4267,2600.7,2600.2,4.530325]
[1723264377924,3.84488,2600.9,2600.4,3.84547]
[1723264377925,10.25458,2600.9,2600.4,3.84547]
[1723264379432,11.72473598,2600.9,2600.2,4.530325]
[1723264379592,3.84513,2600.7,2600.2,7.69151]
[1723264380540,2.4267,2600.5,2600.1,6.84595]
[1723264381036,2.4267,2600.5,2600.2,3.84583]
[1723264381626,2.4267,2600.5,2600.2,7.69166]
[1723264381805,2.4267,2600.5,2600.3,3.84566]
[1723264382005,2.3016,2600.7,2600.3,3.84566]
[1723264382207,6.2846,2600.7,2600.4,0.03366542]
[1723264382530,6.2846,2600.7,2600.3,3.84566]
[1723264383394,6.2846,2600.7,2600.4,3.84543]
[1723264383596,3.983,2601.0,2600.8,3.84487]
[1723264383794,2.3016,2601.1,2600.7,3.84503]
[1723264384035,2.3016,2601.1,2600.9,0.03661087]
[1723264384347,2.3016,2601.1,2600.7,7.69006]
[1723264384348,2.3016,2601.1,2601.0,0.03661087]
[1723264384800,2.3016,2601.1,2600.7,7.69006]
[1723264385003,2.3016,2601.1,2601.0,0.03661087]
[1723264385622,6.14612,2601.1,2600.5,7.69061]
[1723264385827,7.159011,2601.1,2601.0,0.03661087]
[1723264386013,2.3016,2601.1,2600.7,3.84502]
[1723264386369,2.3016,2601.1,2600.8,3.84483]
[1723264386535,3.983,2601.2,2600.8,3.88144087]
[1723264387798,2.3016,2601.4,2601.0,3.84463]
[1723264388037,6.2846,2601.4,2600.9,3.84467]
[1723264388236,7.681866,2601.4,2601.1,0.03661087]
[1723264388535,7.681866,2601.4,2601.2,0.03661087]
[1723264388902,7.681866,2601.4,2601.0,3.84463]
[1723264389101,7.681866,2601.4,2601.1,0.03661087]
[1723264389335,11.525966,2601.4,2601.1,0.03661087]
[1723264389537,11.525966,2601.4,2600.9,3.84467]
[1723264390136,11.525966,2601.4,2601.0,0.03661087]
[1723264391106,7.681866,2601.4,2601.0,0.03661087]
[1723264391514,11.525976,2601.4,2601.0,0.03661087]
[1723264392219,5.3812396,2601.3,2601.0,0.03661087]
[1723264392401,5.3812396,2601.3,2600.7,3.84503]
[1723264392615,5.3812396,2601.3,2601.1,0.03661087]
[1723264392814,5.3812396,2601.3,2600.7,3.84502]
[1723264393027,9.2255596,2601.3,2601.2,0.03661087]
[1723264393350,2.3016,2601.0,2600.5,7.69061]
[1723264393515,2.3016,2601.0,2600.5,3.84528]
[1723264393717,2.3016,2601.0,2600.6,3.84524]
[1723264396145,2.3016,2601.0,2600.5,3.84528]
[1723264396146,0.92255596,2601.2,2600.8,3.84495]
[1723264396354,10.12886,2601.3,2600.8,3.84495]
[1723264397217,6.2846,2601.3,2600.8,3.84495]
[1723264397851,10.12883,2601.3,2600.8,3.84495]
[1723264398381,6.2846,2601.3,2600.8,3.84495]
[1723264398887,10.12883,2601.3,2600.8,3.84495]
[1723264399163,11.52613,2601.3,2600.8,3.84495]
[1723264399370,11.52613,2601.3,2600.9,0.03580192]
[1723264399865,11.52615,2601.3,2600.9,0.03580192]
[1723264400038,7.6819,2601.3,2600.9,0.03580192]
[1723264400237,6.2846,2601.3,2600.6,3.84519]
[1723264400439,6.2846,2601.3,2601.0,0.03580192]
[1723264400440,3.8446,2601.1,2601.0,0.03580192]
[1723264400946,3.8446,2601.1,2600.6,3.84519]
[1723264401259,3.8446,2601.1,2600.7,0.03580192]
[1723264402050,2.4455,2601.0,2600.7,0.03580192]
[1723264407784,1.663,2600.8,2600.7,0.03580192]
[1723264412785,1.663,2600.8,2600.5,3.0]
[1723264412948,1.663,2600.6,2600.5,3.0]
[1723264413366,1.663,2600.6,2600.3,3.84565]
[1723264413557,1.663,2600.4,2600.3,3.84565]
[1723264413762,1.663,2600.4,2600.2,3.84577]
[1723264413763,1.663,2600.4,2600.1,5.3182]
[1723264413993,1.663,2600.2,2600.0,3.84612]
[1723264414354,1.663,2600.2,2600.1,0.03466852]
[1723264414554,1.663,2600.2,2599.9,6.16439]
[1723264414555,1.663,2600.2,2599.9,10.0106]
[1723264414756,1.663,2600.0,2599.9,6.16439]
[1723264415581,1.663,2600.0,2599.9,9.16439]
[1723264416762,1.663,2600.0,2599.9,3.0]
[1723264416960,1.663,2600.0,2599.7,3.84651]
[1723264417482,1.663,2599.8,2599.7,3.84651]
[1723264418054,1.663,2599.8,2599.7,6.84651]
[1723264418785,1.663,2599.8,2599.7,3.0]
[1723264420097,4.1085,2599.8,2599.6,3.0]
[1723264420654,4.1085,2599.8,2599.5,3.0]
[1723264420875,1.663,2599.6,2599.5,3.0]
[1723264421075,1.663,2599.6,2599.3,0.0350876]
[1723264421280,1.663,2599.4,2599.3,3.8822476]
[1723264421798,2.4455,2599.8,2599.3,3.8822476]
[1723264422292,3.84692,2599.5,2599.3,0.0350876]
[1723264422456,10.32954,2599.4,2599.3,0.0350876]
[1723264422659,3.994,2599.4,2599.3,0.0350876]
[1723264423084,2.4885,2599.5,2599.3,0.0350876]
[1723264423292,2.4885,2599.5,2599.3,0.07018442]
[1723264423495,2.4885,2599.5,2599.3,0.0350876]
[1723264423685,6.33539,2599.5,2599.4,0.03509682]
[1723264423947,11.599886,2599.5,2599.4,0.03509682]
[1723264424277,7.69408,2599.4,2599.3,0.0350876]
[1723264425391,10.18258,2599.4,2599.3,0.0350876]
[1723264425597,6.33554,2599.4,2599.3,0.0350876]
[1723264425763,7.8949416,2599.4,2599.3,0.0350876]
[1723264425969,7.8949416,2599.4,2599.3,0.06951067]
[1723264427189,11.7419816,2599.4,2599.3,0.06951067]
[1723264427375,7.8949416,2599.4,2599.3,0.06951067]
[1723264427580,7.8949416,2599.4,2599.3,0.0350876]
[1723264427792,7.8949416,2599.4,2599.3,0.06970222]
[1723264428591,11.7419816,2599.4,2599.3,0.06970222]
[1723264428770,11.7419816,2599.4,2599.3,0.0350876]
[1723264429092,7.8949416,2599.4,2599.3,0.0350876]
[1723264429901,7.8949416,2599.4,2599.3,0.06970222]
[1723264430097,11.7419816,2599.4,2599.3,0.06970222]
[1723264430294,7.8949416,2599.4,2599.3,0.06970222]
[1723264430494,3.84698,2599.5,2599.3,0.0350876]
[1723264430811,3.994,2599.4,2599.3,0.0350876]
[1723264431105,14.17658,2599.4,2599.3,0.0350876]
[1723264433006,10.32954,2599.4,2599.3,0.0350876]
[1723264433785,6.4825,2599.4,2599.3,0.0350876]
[1723264434185,6.33517,2599.7,2599.3,0.0350876]
[1723264434386,3.994,2599.6,2599.3,3.8822576]
[1723264434587,3.994,2599.8,2599.3,0.0350876]
[1723264434787,3.994,2599.8,2599.4,3.84695]
[1723264436680,3.994,2599.8,2599.5,3.84687]
[1723264437028,3.994,2599.8,2599.4,7.69391]
[1723264437312,3.994,2599.8,2599.4,3.84695]
[1723264437514,3.994,2599.8,2599.3,0.0350876]
[1723264437815,7.84046,2599.8,2599.3,0.0350876]
[1723264437989,3.994,2599.8,2599.3,3.8822376]
[1723264438981,9.6024,2599.8,2599.3,0.0350876]
[1723264439616,3.84661,2599.7,2599.3,0.0350876]
[1723264440319,3.84699,2599.5,2599.3,0.0350876]
[1723264440522,0.384699,2599.4,2599.3,0.0350876]
[1723264441016,10.32949,2599.5,2599.3,0.0350876]
[1723264442024,3.994,2599.5,2599.3,0.0350876]
[1723264442186,1.76188,2599.8,2599.3,0.0350876]
[1723264442187,3.994,2599.8,2599.3,3.8821976]
[1723264442382,5.751747,2599.8,2599.3,3.8821976]
[1723264442877,3.994,2599.8,2599.4,3.84702]
[1723264443295,3.994,2599.8,2599.5,0.03394055]
[1723264443501,3.84662,2599.7,2599.3,0.0350876]
[1723264443801,5.260029,2599.7,2599.6,0.03394055]
[1723264444002,5.260029,2599.7,2599.3,0.0350876]
[1723264444202,5.260029,2599.7,2599.6,0.03394055]
[1723264444825,1.413409,2599.7,2599.3,0.0350876]
[1723264445123,7.84044,2599.8,2599.6,0.03394055]
[1723264445316,7.84044,2599.8,2599.3,0.0350876]
[1723264445522,3.84671,2599.7,2599.3,0.0350876]
[1723264445695,3.84675,2599.6,2599.3,0.0350876]
[1723264446837,10.288,2599.5,2599.3,0.0350876]
[1723264446998,3.84704,2599.4,2599.3,0.0350876]
[1723264447203,7.69408,2599.4,2599.3,0.0350876]
[1723264447703,9.35908,2599.4,2599.3,0.0350876]
[1723264448606,11.80618,2599.4,2599.3,0.0350876]
[1723264448795,13.37149,2599.4,2599.3,0.0350876]
[1723264449805,15.70249,2599.4,2599.3,0.0350876]
[1723264451201,11.85545,2599.4,2599.3,0.0350876]
[1723264452432,3.996,2599.4,2599.3,0.0350876]
[1723264452701,14.13648,2599.7,2599.3,0.0350876]
[1723264453127,10.28978,2599.7,2599.3,0.0350876]
[1723264453334,3.84697,2599.5,2599.3,0.0350876]
[1723264455311,8.722987,2599.5,2599.3,0.0350876]
[1723264455658,7.84304,2599.4,2599.3,0.0350876]
[1723264456244,11.69008,2599.4,2599.3,0.0350876]
[1723264456549,14.13718,2599.4,2599.3,0.0350876]
[1723264458556,14.68718,2599.4,2599.3,0.0350876]
[1723264458713,16.6434757,2599.4,2599.3,0.0350876]
[1723264459944,20.4905157,2599.4,2599.3,0.0350876]
[1723264461856,24.3375557,2599.4,2599.3,0.0350876]
[1723264462159,24.3375557,2599.4,2598.3,2.3823]
[1723264462160,3.84825,2598.6,2598.3,2.3823]
[1723264462457,7.84398,2598.8,2598.3,2.3823]
[1723264462637,3.996,2598.8,2598.3,2.3823]
[1723264462848,11.286,2599.1,2598.3,2.3823]
[1723264463031,11.286,2599.1,2598.7,2.4127]
[1723264464356,11.286,2599.1,2598.8,3.84791]
[1723264464819,11.286,2599.1,2598.7,2.4127]
[1723264467446,11.286,2599.1,2598.8,3.84792]
[1723264467816,3.996,2599.1,2598.8,3.84792]
[1723264468021,3.996,2599.1,2598.7,2.4127]
[1723264468617,3.996,2599.1,2598.8,3.84786]
[1723264469737,3.996,2599.1,2598.9,3.84776]
[1723264470066,2.3398,2599.5,2599.0,2.4127]
[1723264470067,3.996,2599.4,2599.0,2.4127]
[1723264470481,7.84306,2599.4,2599.0,2.4127]
[1723264470772,3.996,2599.4,2599.0,2.4127]
[1723264471084,3.996,2599.4,2599.0,6.26031]
[1723264472583,3.996,2599.4,2599.0,6.26032]
[1723264473247,3.996,2599.4,2599.0,7.3722052]
[1723264473948,3.996,2599.4,2599.0,6.26032]
[1723264474349,3.996,2599.4,2599.0,2.4127]
[1723264474986,6.3358,2599.4,2598.7,2.4127]
[1723264475282,3.84743,2599.2,2598.7,2.4127]
[1723264475657,1.665,2598.8,2598.7,2.4127]
[1723264476369,1.665,2598.8,2598.7,6.26077]
[1723264479909,1.665,2598.8,2598.7,2.4127]
[1723264481580,1.665,2598.8,2598.5,2.4127]
[1723264481788,1.665,2598.6,2598.5,2.4127]
[1723264482232,1.665,2598.6,2598.3,2.409]
[1723264482374,1.665,2598.6,2598.1,3.84895]
[1723264482375,1.665,2598.4,2598.1,3.84895]
[1723264482581,1.665,2598.2,2598.1,3.84895]
[1723264482890,1.665,2598.2,2598.0,6.25801]
[1723264483280,1.665,2598.2,2598.0,2.409]
[1723264484754,1.665,2598.2,2597.9,3.0]
[1723264484940,1.665,2598.0,2597.9,3.0]
[1723264485819,3.84874,2598.3,2597.9,3.0]
[1723264488024,3.84845,2598.5,2597.9,3.0]
[1723264488232,10.12191,2598.6,2597.9,3.0]
[1723264488552,3.998,2598.6,2598.0,2.409]
[1723264489255,3.998,2598.9,2598.4,3.8484]
[1723264489663,3.84754,2599.1,2598.6,3.84821]
[1723264490215,3.998,2599.2,2598.7,6.25705]
[1723264490421,7.84535,2599.2,2598.7,2.409]
[1723264490947,3.998,2599.2,2598.8,3.84791]
[1723264491161,7.84493,2599.5,2598.9,3.8477]
[1723264491360,13.033163,2599.5,2598.9,3.8477]
[1723264491683,9.186183,2599.5,2599.0,3.84762]
[1723264492571,3.998,2599.5,2599.0,3.84754]
[1723264492774,3.84666,2599.7,2599.1,6.25638]
[1723264492958,3.84666,2599.7,2599.2,3.84725]
[1723264493136,2.969865,2599.7,2599.3,3.84718]
[1723264494468,6.816465,2599.7,2599.1,6.25638]
[1723264494668,3.8466,2599.7,2599.1,6.25638]
[1723264494882,3.998,2599.8,2599.4,3.84702]
[1723264496269,7.84408,2600.1,2599.6,2.409]
[1723264496633,9.240626,2600.1,2599.6,2.409]
[1723264497036,5.394546,2600.1,2599.6,6.25571]
[1723264497970,1.396546,2600.1,2599.6,6.25571]
[1723264498156,3.84617,2600.0,2599.6,2.409]
[1723264499498,3.84612,2600.1,2599.4,2.409]
[1723264499713,2.2756,2600.3,2599.4,2.409]
[1723264499714,7.84439,2599.9,2599.4,2.409]
[1723264500029,3.8466,2599.7,2599.4,2.409]
[1723264500334,7.84439,2599.9,2599.4,2.409]
[1723264502938,3.8466,2599.7,2599.4,2.409]
[1723264503114,7.69333,2599.7,2599.2,3.0]
[1723264503439,2.297,2599.8,2599.2,3.0]
[1723264503440,7.84436,2599.9,2599.3,3.8471]
[1723264504015,7.84439,2599.9,2599.2,3.930199]
[1723264504196,7.84439,2599.9,2599.2,3.0]
[1723264504400,3.84669,2599.7,2599.2,3.0]
[1723264505137,7.69338,2599.7,2599.2,3.0]
[1723264505337,3.998,2599.9,2599.2,3.0]
[1723264505533,3.84691,2599.5,2598.9,3.84768]
[1723264505708,0.784491,2599.4,2598.9,3.84768]
[1723264505914,3.84691,2599.5,2598.9,3.84768]
[1723264506318,7.69389,2599.5,2598.9,3.84768]
[1723264506515,3.84691,2599.5,2598.9,3.84768]
[1723264506839,3.84691,2599.5,2599.0,3.0]
[1723264507202,3.84712,2599.4,2599.0,3.0]
[1723264507407,3.84708,2599.4,2598.9,6.84777]
[1723264508019,3.84691,2599.5,2598.9,6.84777]
[1723264508205,4.631401,2599.5,2598.9,6.84777]
[1723264508639,8.478401,2599.5,2598.9,6.84777]
[1723264509746,4.631401,2599.5,2598.9,6.84777]
[1723264509907,8.478381,2599.5,2598.9,6.84777]
[1723264510109,4.631401,2599.5,2598.9,6.84777]
[1723264510339,4.631401,2599.5,2598.9,6.8477]
[1723264510847,0.8629401,2599.4,2598.9,6.8477]
[1723264511044,4.7100401,2599.4,2598.9,3.0]
[1723264511249,10.8542201,2599.4,2598.8,9.30252]
[1723264511542,7.0070401,2599.4,2598.8,5.4546]
[1723264511767,7.69516,2599.1,2598.5,6.30288]
[1723264511930,7.69513,2599.1,2598.5,6.30288]
[1723264512124,3.84771,2599.0,2598.5,6.30288]
[1723264512436,4.617237,2599.0,2598.5,6.30288]
[1723264512954,3.84771,2599.0,2598.5,6.30288]
[1723264513551,3.8478,2598.9,2598.5,2.4546]
[1723264513872,3.8478,2598.9,2598.5,3.0]
[1723264514223,3.8478,2598.9,2598.4,3.0]
[1723264515643,3.8478,2598.9,2598.4,6.84851]
[1723264517437,2.297,2599.0,2598.5,3.84836]
[1723264517770,3.84763,2599.0,2598.5,3.84836]
[1723264518647,3.84783,2598.9,2598.4,3.0]
[1723264519825,3.84783,2598.9,2598.4,6.84843]
[1723264521843,1.665,2598.6,2598.4,6.84843]
[1723264522668,1.665,2598.6,2598.4,3.0]
[1723264522866,1.665,2598.6,2598.3,6.30326]
[1723264523033,1.665,2598.6,2598.4,3.0]
[1723264523447,3.84709,2599.4,2598.7,6.26723]
[1723264523647,3.84709,2599.4,2598.5,0.07696369]
[1723264523648,1.665,2599.1,2599.0,2.4193]
[1723264523877,1.665,2599.1,2599.0,3.045996]
[1723264525676,1.665,2599.1,2599.0,6.893626]
[1723264525977,11.1369,2599.5,2599.0,6.893626]
[1723264526179,11.1369,2599.5,2599.0,2.4193]
[1723264526661,11.1369,2599.5,2599.0,6.26693]
[1723264527046,11.1369,2599.5,2599.0,2.4193]
[1723264527252,3.8469,2599.5,2599.0,2.4193]
[1723264528231,3.995,2599.6,2599.0,2.4193]
[1723264528433,3.84693,2599.5,2599.0,3.045995]
[1723264530256,3.84693,2599.5,2599.0,2.4193]
[1723264531797,3.84693,2599.5,2599.1,0.10366418]
[1723264532691,10.29027,2599.7,2599.2,3.84723]
[1723264532913,7.84167,2599.7,2599.2,3.95105093]
[1723264533769,7.89265521,2599.9,2599.6,3.84671]
[1723264533999,7.29,2599.9,2599.6,3.92358017]
[1723264534162,7.29,2599.9,2599.7,3.8465]
[1723264534495,3.84586,2600.2,2599.7,7.79601224]
[1723264534666,3.84586,2600.2,2599.7,3.94950224]
[1723264535556,3.995,2600.3,2599.8,3.84638]
[1723264535758,5.752912,2600.3,2599.8,3.84638]
[1723264535979,5.752912,2600.3,2599.9,0.10300224]
[1723264536580,5.752912,2600.3,2599.5,3.84681]
[1723264536989,5.752912,2600.3,2599.6,0.10300224]
[1723264537191,3.84602,2600.1,2599.6,3.94966224]
[1723264537504,4.8059132,2600.1,2599.6,3.94966224]
[1723264537701,3.84602,2600.1,2599.6,3.94966224]
[1723264538086,9.598742,2600.3,2599.8,3.84635]
[1723264538287,3.995,2600.3,2600.0,3.84605]
[1723264538488,7.29,2600.5,2600.1,6.26522]
[1723264538700,0.60256687,2600.6,2600.2,3.84582]
[1723264539012,7.29,2601.0,2600.6,3.84524]
[1723264539314,7.29,2601.0,2600.5,2.4193]
[1723264539315,3.995,2601.4,2600.7,0.1025931]
[1723264539469,3.84417,2601.4,2600.9,3.84481]
[1723264539668,5.27776507,2601.4,2600.9,3.84481]
[1723264539888,5.27776507,2601.4,2601.0,0.10224502]
[1723264540292,9.12193507,2601.4,2601.0,0.10224502]
[1723264540492,3.84437,2601.3,2600.7,3.92188977]
[1723264540675,6.12992351,2601.3,2601.1,0.10224502]
[1723264540985,3.84437,2601.2,2600.7,3.84499]
[1723264541386,5.27776507,2601.4,2600.9,3.8448]
[1723264541582,7.29,2601.5,2601.1,3.84451]
[1723264541889,37.35998807,2603.8,2601.4,3.84408]
[1723264541890,3.995,2601.9,2601.4,3.84408]
[1723264542285,3.995,2601.9,2601.5,3.84382]
[1723264542608,3.995,2601.9,2601.3,3.8441]
[1723264542771,5.218684,2601.9,2601.3,3.8441]
[1723264543378,5.218684,2601.9,2601.1,7.68886]
[1723264543578,3.84351,2601.8,2601.2,3.0]
[1723264543916,3.84351,2601.8,2601.0,2.4193]
[1723264543917,3.84351,2601.8,2601.1,3.84446]
[1723264544198,3.84351,2601.8,2601.2,6.84435]
[1723264544903,3.995,2601.9,2601.3,3.84419]
[1723264545089,3.995,2601.9,2601.5,3.8438]
[1723264545295,7.83797,2602.2,2601.5,3.8438]
[1723264545614,1.512797,2602.1,2601.5,3.8438]
[1723264546418,1.512797,2602.1,2601.6,3.84377]
[1723264546572,1.512797,2602.1,2601.5,3.8438]
[1723264546900,1.512797,2602.1,2601.6,3.8437]
[1723264547468,1.512797,2602.1,2601.7,3.84361]
[1723264547668,7.83797,2602.2,2601.7,3.84361]
[1723264548308,3.995,2602.2,2601.8,3.84343]
[1723264549330,3.995,2602.2,2601.9,0.09920044]
[1723264549516,3.995,2602.2,2601.7,3.92047384]
[1723264549708,3.995,2602.2,2602.0,0.09920044]
[1723264549914,3.995,2602.2,2601.7,3.92047384]
[1723264550236,3.995,2602.2,2602.1,0.09920044]
[1723264550445,3.995,2602.2,2601.7,4.69690622]
[1723264550893,3.995,2602.2,2601.8,2.53010044]
[1723264551094,3.995,2602.2,2601.9,3.84323]
[1723264551297,3.995,2602.2,2601.9,3.94239569]
[1723264551609,6.4471,2602.5,2601.9,5.0417255]
[1723264551810,3.84263,2602.4,2601.9,1.1984955]
[1723264552003,3.84263,2602.4,2601.9,0.09916569]
[1723264552207,3.84263,2602.4,2601.8,6.27438]
[1723264552411,3.84263,2602.4,2601.8,6.35124179]
[1723264552739,3.84263,2602.4,2601.9,3.94245569]
[1723264553614,3.84263,2602.4,2601.9,0.09916569]
[1723264554005,10.28956,2602.5,2601.9,7.68647]
[1723264554314,10.28956,2602.5,2602.0,3.94235569]
[1723264554315,3.995,2602.5,2602.0,3.94235569]
[1723264554517,3.995,2602.5,2602.1,3.84295]
[1723264554928,3.995,2602.5,2602.2,0.09916569]
[1723264560549,3.995,2602.5,2602.0,3.84314]
[1723264560750,3.995,2602.5,2602.3,0.09812265]
[1723264560922,3.995,2602.5,2602.0,3.84314]
[1723264561126,3.995,2602.5,2602.4,0.09812265]
[1723264561323,3.84208,2602.8,2602.2,6.27369]
[1723264561324,7.83708,2602.8,2602.2,6.27369]
[1723264561562,3.995,2602.8,2602.4,3.94071265]
[1723264561864,11.13181,2603.0,2602.6,3.84229]
[1723264561865,7.29,2603.0,2602.6,3.84229]
[1723264562227,7.29,2603.0,2602.7,0.09784463]
[1723264564037,7.29,2603.0,2602.6,3.84229]
[1723264564242,7.29,2603.0,2602.6,4.65018513]
[1723264564781,7.29,2603.0,2602.7,0.09784463]
[1723264565647,11.13173,2603.0,2602.7,0.09784463]
[1723264565855,14.07782,2602.8,2602.7,0.09784463]
[1723264566240,14.07792,2602.8,2602.2,6.27379]
[1723264566440,14.07792,2602.8,2602.7,0.09699343]
[1723264566653,3.8418,2603.0,2602.2,3.46966753]
[1723264566890,3.8418,2603.0,2602.7,0.09699343]
[1723264567208,3.8418,2603.0,2602.3,0.07684603]
[1723264567209,3.84186,2602.9,2602.8,0.09704554]
[1723264567495,3.84202,2602.8,2602.3,0.35465136]
[1723264567689,3.84234,2602.6,2602.2,1.03876753]
[1723264567857,7.83709,2602.8,2602.2,4.88163753]
[1723264568061,7.83709,2602.8,2602.2,4.88158753]
[1723264568361,3.84218,2602.7,2602.2,4.88158753]
[1723264568686,3.84231,2602.6,2602.2,1.03876753]
[1723264568889,3.84231,2602.6,2602.0,12.96791]
[1723264569404,7.83709,2602.8,2602.3,6.12435]
[1723264569561,3.995,2602.8,2602.4,3.84258]
[1723264569757,3.995,2602.8,2602.5,3.84243]
[1723264569959,3.8418,2603.0,2602.5,3.84243]
[1723264572389,3.8418,2603.0,2602.4,3.84258]
[1723264572697,3.84206,2602.8,2602.3,2.2817]
[1723264573262,3.84206,2602.8,2602.3,6.12443]
[1723264573497,3.84197,2602.9,2602.3,2.2817]
[1723264573801,3.995,2602.8,2602.3,2.2817]
[1723264574007,3.995,2602.8,2602.4,3.84251]
[1723264574587,3.995,2602.8,2602.4,7.68503]
[1723264575019,3.995,2602.8,2602.5,3.84245]
[1723264576197,3.995,2603.1,2602.6,3.84217]
[1723264576393,3.995,2603.1,2602.7,2.2817]
[1723264576592,7.8366,2603.1,2602.7,2.2817]
[1723264576797,7.8366,2603.1,2602.6,3.84217]
[1723264577419,3.84134,2603.3,2602.6,3.84217]
[1723264577420,3.995,2603.2,2602.7,3.84215]
[1723264578199,7.8365,2603.2,2602.6,4.84649411]
[1723264578419,7.83642,2603.2,2602.7,3.84209]
[1723264579544,7.83642,2603.2,2602.8,0.09699343]
[1723264580230,7.83642,2603.2,2602.9,0.09699343]
[1723264580598,3.84158,2603.1,2602.6,3.84217]
[1723264580805,3.84158,2603.1,2603.0,0.09699343]
[1723264581130,7.83642,2603.2,2602.6,3.84217]
[1723264581303,7.83642,2603.2,2603.0,0.09575986]
[1723264581701,7.83642,2603.2,2602.7,3.84215]
[1723264581937,7.83642,2603.2,2603.1,0.09695231]
[1723264582233,7.83642,2603.2,2602.7,3.84215]
[1723264582424,7.83642,2603.2,2603.1,0.09695231]